bitfinex/quotes_ETHUSD_20260203
["timestamp","ask_amount","ask_price","bid_price","bid_amount"]
[1770078306837,0.896,2339.9,2339.0,12.10932162]
[1770078308022,0.896,2339.9,2339.1,13.16522272]
[1770078309338,0.896,2339.9,2339.2,0.01288604]
[1770078309819,1.30142676,2340.2,2339.2,0.01288604]
[1770078310022,2.154428,2340.1,2339.1,13.16522272]
[1770078310237,0.45241713,2340.1,2339.1,13.16522272]
[1770078310661,1.30142676,2340.2,2339.1,13.16522272]
[1770078312242,2.82331,2340.1,2339.1,1.06878714]
[1770078312938,11.94602747,2340.2,2339.1,1.06878714]
[1770078313146,11.94602747,2340.2,2339.1,13.16522272]
[1770078314261,5.16867092,2340.5,2339.1,13.16522272]
[1770078314262,0.896,2340.5,2339.3,12.09643558]
[1770078314444,0.896,2340.5,2339.6,12.09643558]
[1770078315796,13.91018186,2340.5,2339.3,12.09643558]
[1770078315949,12.84202747,2340.5,2339.3,12.09643558]
[1770078316148,12.84202747,2340.5,2339.4,1.06865008]
[1770078317291,0.896,2340.5,2339.4,13.16508566]
[1770078317476,0.896,2340.5,2339.5,12.09643558]
[1770078318383,0.896,2340.5,2339.6,1.06855872]
[1770078319092,0.0011,2340.3,2339.6,1.06855872]
[1770078324666,0.0011,2340.3,2339.8,12.30402038]
[1770078325197,0.0011,2340.3,2339.9,1.06842172]
[1770078325375,0.0011,2340.3,2339.8,13.3724522]
[1770078325609,0.0011,2340.3,2339.8,1.06846005]
[1770078325796,0.0011,2340.3,2339.6,1.06853425]
[1770078326002,0.0011,2340.3,2339.5,16.57835858]
[1770078326003,0.0011,2340.3,2339.5,1.0685826]
[1770078326205,0.0011,2340.3,2339.6,1.06855595]
[1770078326699,0.0011,2340.3,2339.0,2.00783433]
[1770078326700,11.87720855,2340.2,2339.0,2.00783433]
[1770078327032,0.0011,2340.3,2339.0,2.00783433]
[1770078327033,13.06503941,2340.1,2339.0,2.00783433]
[1770078327202,12.94571899,2339.8,2339.0,2.00783433]
[1770078327532,15.02940181,2340.1,2339.0,15.38065313]
[1770078327918,11.87720855,2339.8,2339.0,2.00783433]
[1770078328125,11.87720855,2339.6,2339.0,2.00783433]
[1770078328300,1.18772086,2339.5,2339.0,2.00783433]
[1770078328503,13.06492941,2339.5,2338.4,0.81623372]
[1770078329415,13.06492941,2339.5,2338.2,1.06919852]
[1770078329612,13.06492941,2339.5,2338.3,0.01288604]
[1770078329818,14.13353956,2339.5,2338.3,0.01288604]
[1770078330129,13.29056251,2339.4,2338.2,1.06919852]
[1770078330636,13.29056251,2339.4,2338.3,0.01288604]
[1770078330847,13.29056251,2339.4,2338.2,1.06919852]
[1770078331347,13.29056251,2339.4,2338.6,0.001]
[1770078332145,1.41335396,2339.4,2338.6,0.001]
[1770078332448,2.629456,2339.8,2338.7,12.31690642]
[1770078332813,18.43880455,2339.7,2338.6,0.001]
[1770078333121,11.87720855,2339.5,2338.6,0.001]
[1770078335349,11.87720855,2339.8,2338.6,0.001]
[1770078335550,3.217686,2339.7,2338.6,0.001]
[1770078335716,1.50948946,2339.6,2338.6,0.001]
[1770078335916,2.580692,2339.5,2338.6,0.001]
[1770078337164,14.45529039,2339.6,2338.6,0.001]
[1770078337459,13.38669801,2339.6,2338.6,0.001]
[1770078337932,1.50948946,2339.6,2338.7,0.01288604]
[1770078338134,12.94571069,2339.8,2338.7,0.01288604]
[1770078338334,14.47645455,2339.7,2338.6,12.30502038]
[1770078338636,14.47645455,2339.7,2338.6,1.07000246]
[1770078338637,12.94578069,2339.6,2338.6,1.07000246]
[1770078339658,11.87720855,2339.6,2338.6,1.07000246]
[1770078340136,12.94558461,2340.0,2338.7,12.31690642]
[1770078340340,1.9303842,2339.9,2338.8,12.30402038]
[1770078340551,3.59162639,2339.8,2338.8,13.37292913]
[1770078340862,11.87720855,2339.7,2338.7,0.01288604]
[1770078341068,1.29456759,2339.6,2338.8,1.06891904]
[1770078342534,1.9303842,2339.9,2338.8,1.06891904]
[1770078342964,1.9303842,2339.9,2338.8,13.37293942]
[1770078343164,2.08493086,2340.1,2339.3,0.01288604]
[1770078343165,0.8971,2340.1,2339.3,0.01288604]
[1770078343950,0.0011,2339.7,2339.3,12.31690642]
[1770078344152,0.0011,2340.1,2339.4,13.39699292]
[1770078344563,0.0011,2340.1,2339.6,12.31690642]
[1770078345281,0.0011,2340.1,2339.7,1.06851305]
[1770078345462,0.0011,2340.1,2339.4,5.36753074]
[1770078345463,0.0011,2340.1,2338.9,12.30402038]
[1770078345661,0.0011,2340.1,2339.1,1.06874599]
[1770078345861,4.097336,2340.0,2339.0,1.06881056]
[1770078346071,1.59756446,2339.9,2339.0,1.06881056]
[1770078346284,1.59756446,2339.9,2339.1,1.06878034]
[1770078346487,1.59756446,2339.9,2338.6,0.001]
[1770078346488,11.87720855,2339.7,2338.6,0.001]
[1770078346652,1.59756446,2339.9,2338.6,0.001]
[1770078346653,11.87720855,2339.6,2338.6,0.001]
[1770078346852,11.87720855,2339.6,2338.6,1.0699837]
[1770078347049,1.27732086,2339.5,2338.6,1.0699837]
[1770078347253,1.27732086,2339.5,2338.6,0.001]
[1770078347452,2.34592712,2339.5,2338.6,0.001]
[1770078347677,14.22313567,2339.5,2338.6,0.001]
[1770078348088,1.27732086,2339.5,2338.6,0.001]
[1770078348254,2.329,2339.6,2338.6,0.001]
[1770078348452,0.896,2339.7,2338.7,0.01288604]
[1770078349265,0.896,2339.7,2338.7,1.08184387]
[1770078349782,0.896,2339.7,2339.0,0.01288604]
[1770078349983,0.896,2339.7,2338.7,13.38586425]
[1770078350390,0.896,2339.7,2338.7,1.08184387]
[1770078356085,0.896,2339.7,2338.9,0.001]
[1770078356086,11.999684,2339.5,2338.9,0.001]
[1770078357487,13.06832109,2339.5,2338.9,0.001]
[1770078357688,11.999684,2339.5,2338.9,0.001]
[1770078358388,13.0682988,2339.5,2338.9,0.001]
[1770078358588,13.73393785,2339.4,2338.6,0.001]
[1770078359569,14.80262436,2339.4,2338.6,0.001]
[1770078360100,1.73425385,2339.4,2338.6,0.001]
[1770078360271,2.737287,2339.6,2338.6,0.001]
[1770078360783,13.96530074,2339.7,2338.6,0.001]
[1770078361095,0.91000837,2339.6,2338.6,0.001]
[1770078361391,2.733623,2339.6,2338.6,0.001]
[1770078361585,2.083229,2339.6,2338.6,0.001]
[1770078361891,1.60485297,2339.5,2338.6,0.001]
[1770078362206,1.60485297,2339.5,2338.8,12.87798149]
[1770078362507,11.999684,2339.5,2338.6,0.001]
[1770078363032,11.999684,2339.4,2338.6,0.001]
[1770078363479,13.96529766,2339.7,2338.6,0.001]
[1770078363668,3.66582141,2339.6,2338.6,0.001]
[1770078363870,2.75550916,2339.6,2338.6,0.001]
[1770078365219,1.68692402,2339.6,2338.7,12.89086753]
[1770078365382,0.0011,2339.9,2339.4,0.01288604]
[1770078365698,0.0011,2339.9,2339.4,1.08151173]
[1770078365999,0.0011,2340.3,2339.4,13.94660718]
[1770078368306,0.0011,2340.7,2339.8,12.87798149]
[1770078368600,0.0011,2340.7,2339.5,0.2335703]
[1770078368601,0.0011,2340.7,2339.9,12.87798149]
[1770078369170,0.0011,2340.7,2340.1,0.01288604]
[1770078369701,0.0011,2340.9,2340.4,0.01288604]
[1770078369908,4.13265274,2341.3,2340.4,0.01288604]
[1770078369909,4.13265274,2341.3,2340.7,12.89086753]
[1770078370079,4.13265274,2341.3,2340.8,1.06801093]
[1770078370280,0.0011,2341.5,2341.0,0.01288604]
[1770078370779,0.0011,2341.5,2340.8,1.06801093]
[1770078370980,0.0011,2341.5,2340.8,1.08089697]
[1770078371905,0.0011,2341.5,2341.1,0.01288604]
[1770078372208,0.0011,2343.3,2342.4,0.01288604]
[1770078372878,1.06799247,2343.3,2342.4,0.01288604]
[1770078373070,0.0011,2343.3,2342.4,0.01288604]
[1770078373271,0.0011,2343.3,2342.7,0.01288604]
[1770078373875,0.0011,2343.3,2342.4,0.01288604]
[1770078374078,0.0011,2343.3,2342.7,0.01288604]
[1770078374713,0.0011,2343.3,2342.6,0.01288604]
[1770078376494,0.0011,2343.3,2342.6,1.0800627]
[1770078377983,0.0011,2343.3,2342.4,1.06726988]
[1770078378180,0.0011,2343.3,2342.5,1.06723021]
[1770078378801,0.0011,2343.3,2342.6,1.06718104]
[1770078379115,0.0011,2343.3,2342.7,0.01288604]
[1770078380012,0.0011,2343.3,2342.6,1.06718104]
[1770078380412,12.50086932,2343.3,2342.3,1.06729969]
[1770078380627,12.50086932,2343.3,2342.2,1.06735014]
[1770078380826,12.50086932,2343.3,2342.2,1.06737255]
[1770078380993,13.56774788,2343.3,2342.2,1.06737255]
[1770078381184,12.49976932,2342.9,2341.7,12.51018177]
[1770078381523,2.26313663,2342.8,2341.8,1.08044064]
[1770078381696,2.26313663,2342.8,2341.8,0.01288604]
[1770078381897,2.26313663,2342.8,2341.8,1.08043285]
[1770078382216,14.76290595,2342.8,2341.8,0.01288604]
[1770078382516,12.49976932,2342.7,2341.6,1.06762117]
[1770078382717,13.97605992,2342.6,2341.6,1.06762117]
[1770078383023,13.97605992,2342.6,2341.8,0.01288604]
[1770078383389,15.04325147,2342.6,2341.6,1.06764605]
[1770078383618,15.04325147,2342.6,2341.5,1.08054658]
[1770078384014,15.04325147,2342.6,2341.5,1.0805761]
[1770078384213,1.93118489,2342.5,2341.5,1.0805761]
[1770078384415,1.93118489,2342.5,2341.8,0.01288604]
[1770078384615,12.49976932,2342.7,2341.5,1.0805761]
[1770078384789,0.0011,2342.9,2341.9,1.06750928]
[1770078384989,0.0011,2342.9,2342.1,0.01288604]
[1770078385613,0.0011,2342.9,2342.4,0.01288604]
[1770078386004,0.0011,2342.9,2342.1,0.01288604]
[1770078386703,0.0011,2342.9,2342.4,0.01288604]
[1770078386912,0.0011,2342.9,2342.4,1.08013661]
[1770078387231,0.0011,2342.9,2342.4,0.54781967]
[1770078387803,0.0011,2342.9,2342.7,0.01288604]
[1770078387995,0.0011,2343.1,2342.7,1.08002198]
[1770078388597,0.0011,2343.3,2343.0,0.01288604]
[1770078388997,0.0011,2343.3,2342.7,1.07999445]
[1770078389291,0.0011,2343.3,2342.9,0.01288604]
[1770078389496,0.0011,2343.3,2342.9,1.07993962]
[1770078391343,0.0011,2343.3,2342.7,4.80342904]
[1770078391344,0.0011,2343.3,2342.7,1.60198548]
[1770078391565,12.50086932,2343.3,2342.1,0.01288604]
[1770078391700,13.74985625,2343.2,2341.9,1.06748092]
[1770078392037,12.49976932,2343.0,2342.0,1.06744112]
[1770078392714,12.49976932,2343.0,2342.1,1.06741345]
[1770078393227,12.49976932,2343.0,2342.0,1.06742776]
[1770078393394,1.24997693,2342.9,2342.0,1.60245914]
[1770078394526,1.24997693,2342.9,2342.1,0.01288604]
[1770078394704,0.0011,2342.8,2342.4,0.01288604]
[1770078395408,0.0011,2343.0,2342.4,1.08014983]
[1770078396130,0.0011,2343.0,2342.2,1.06737236]
[1770078398626,0.0011,2343.0,2342.2,0.01288604]
[1770078399803,0.0011,2343.0,2342.5,0.01288604]
[1770078400003,0.0011,2343.0,2342.2,12.52306781]
[1770078400222,0.0011,2343.0,2342.5,1.08012119]
[1770078400398,0.0011,2343.0,2342.5,0.01288604]
[1770078400716,0.0011,2343.0,2342.3,2.05421268]
[1770078405440,0.0011,2343.3,2342.8,0.01288604]
[1770078405739,0.0011,2343.7,2343.1,0.01288604]
[1770078405902,0.0011,2343.9,2343.6,0.01288604]
[1770078406527,0.0011,2344.1,2343.7,1.06668942]
[1770078407030,0.0011,2344.1,2343.9,0.01288604]
[1770078407236,0.0011,2344.1,2343.7,1.06668942]
[1770078407533,0.68143348,2344.7,2343.9,0.01288604]
[1770078408740,0.4679554,2344.7,2343.9,0.01288604]
[1770078409635,0.4679554,2344.7,2343.4,0.01288604]
[1770078409636,12.49976932,2344.5,2343.4,0.01288604]
[1770078409932,12.49976932,2344.5,2343.7,1.06665754]
[1770078410134,1.24997693,2344.4,2343.7,1.07954358]
[1770078410342,0.4679554,2344.7,2343.7,1.07954358]
[1770078410711,0.4679554,2344.7,2343.1,0.01288604]
[1770078410712,15.18581452,2344.6,2343.1,0.01288604]
[1770078410912,12.80567052,2344.4,2343.3,1.06685445]
[1770078411128,12.80567052,2344.4,2343.4,1.06681983]
[1770078411324,1.28056705,2344.3,2343.5,1.06675611]
[1770078412146,1.28056705,2344.3,2343.4,0.53342968]
[1770078412346,14.08623757,2344.3,2343.3,1.06686053]
[1770078412731,14.08623757,2344.3,2343.2,1.06691703]
[1770078412941,15.15265823,2344.3,2343.2,1.06691703]
[1770078414268,1.28056705,2344.3,2343.4,0.01288604]
[1770078414555,12.80567052,2344.6,2343.7,0.01288604]
[1770078414928,12.80567052,2344.6,2343.7,1.07953984]
[1770078415247,0.4679554,2344.7,2343.7,1.07953984]
[1770078415920,13.87294079,2344.9,2344.0,0.01288604]
[1770078416246,1.81373491,2344.8,2344.0,0.01288604]
[1770078416451,2.635547,2344.7,2343.7,1.07953984]
[1770078416833,2.057985,2344.7,2343.7,1.07953984]
[1770078417456,12.80567052,2344.5,2343.5,1.06674943]
[1770078417852,12.80567052,2344.5,2343.3,1.06684568]
[1770078418052,12.80567052,2344.3,2343.2,1.06687519]
[1770078418355,12.80567052,2344.2,2343.2,1.06687519]
[1770078418856,12.80567052,2344.2,2343.1,4.28068318]
[1770078418857,12.80567052,2344.2,2343.3,1.06687133]
[1770078419569,12.80567052,2344.2,2343.2,4.26766631]
[1770078420069,13.8721387,2344.2,2343.1,1.07981961]
[1770078420290,14.61946189,2344.1,2343.0,5.0]
[1770078420589,1.81379137,2344.1,2343.5,0.001]
[1770078420773,1.28056705,2344.4,2343.7,0.01288604]
[1770078420944,0.8961,2344.5,2343.7,0.01288604]
[1770078421769,14.76811206,2344.5,2343.5,0.001]
[1770078422066,12.80567052,2344.4,2343.5,0.001]
[1770078423851,12.80567052,2344.2,2343.5,0.001]
[1770078425242,5.021424,2344.3,2343.5,0.001]
[1770078425482,0.60878278,2344.2,2343.5,0.001]
[1770078425643,3.618971,2344.4,2343.5,0.001]
[1770078425977,1.06637592,2344.4,2343.5,0.001]
[1770078427472,14.76812934,2344.5,2343.5,0.001]
[1770078427669,2.842606,2344.4,2343.5,0.001]
[1770078427873,4.26514577,2344.6,2343.5,0.001]
[1770078427874,0.0011,2344.9,2344.4,0.01288604]
[1770078428104,0.0011,2344.9,2343.8,12.33074221]
[1770078428239,12.80677052,2344.9,2343.9,0.01288604]
[1770078429542,12.80677052,2344.9,2343.6,1.06673493]
[1770078429543,13.87292463,2344.9,2343.6,1.06673493]
[1770078429749,1.81374988,2344.8,2343.7,0.59984502]
[1770078429978,1.81374988,2344.8,2343.8,1.06664391]
[1770078430179,0.0011,2344.9,2344.0,0.01288604]
[1770078430559,0.0011,2344.9,2343.8,1.06664391]
[1770078430560,12.80677052,2344.9,2343.8,1.06664391]
[1770078430746,12.80677052,2344.9,2343.8,1.07952995]
[1770078431171,13.87292592,2344.9,2343.8,1.06664391]
[1770078431345,12.80567052,2344.8,2343.7,1.66649965]
[1770078431548,1.38729259,2344.7,2343.8,0.59333579]
[1770078431953,1.38729259,2344.7,2343.9,1.0665984]
[1770078432159,0.0011,2344.9,2343.9,1.0665984]
[1770078433573,0.0011,2344.7,2344.0,0.01288604]
[1770078433886,0.0011,2344.7,2343.9,1.0665984]
[1770078434459,12.80677052,2344.7,2343.7,0.001]
[1770078434656,12.80567052,2344.5,2343.7,1.06765318]
[1770078435090,12.80567052,2344.5,2343.7,0.001]
[1770078436390,13.87201504,2344.5,2343.7,0.001]
[1770078437175,12.80567052,2344.5,2343.7,0.001]
[1770078437496,1.28067705,2344.6,2343.7,0.001]
[1770078437704,0.0011,2344.7,2343.7,0.001]
[1770078437996,0.0011,2344.7,2343.8,0.01288604]
[1770078438366,0.0011,2344.7,2343.8,1.07948489]
[1770078438578,0.0011,2344.7,2343.7,1.06765417]
[1770078438760,12.80677052,2344.7,2343.7,0.001]
[1770078438966,1.28067705,2344.6,2343.7,0.001]
[1770078440000,1.28067705,2344.6,2343.7,1.06768197]
[1770078440677,1.28067705,2344.6,2343.7,0.001]
[1770078440994,1.28067705,2344.6,2343.8,0.01288604]
[1770078441186,0.0011,2344.7,2343.8,0.01288604]
[1770078441596,0.0011,2344.7,2343.8,11.8934793]
[1770078441786,0.0011,2344.7,2343.7,0.001]
[1770078444475,11.71750414,2344.7,2343.7,0.001]
[1770078445200,0.0011,2344.7,2343.8,11.8934793]
[1770078445698,0.0011,2344.7,2343.9,0.001]
[1770078445900,0.0011,2344.5,2344.1,0.01288604]
[1770078446106,0.0011,2344.7,2344.1,11.8934793]
[1770078446404,0.0011,2344.7,2343.9,0.001]
[1770078446983,0.0011,2344.7,2344.0,0.01288604]
[1770078447199,0.0011,2344.7,2343.9,0.001]
[1770078449282,11.71750414,2344.7,2343.9,0.001]
[1770078452903,0.0011,2344.7,2344.1,12.94710066]
[1770078454609,0.0011,2344.7,2344.3,0.01288604]
[1770078454784,0.0011,2344.9,2344.3,11.8934793]
[1770078455105,0.0011,2344.9,2344.4,1.06637092]
[1770078456382,0.0011,2344.9,2344.4,12.94696418]
[1770078458405,11.71750414,2345.7,2344.4,12.94696418]
[1770078458714,5.450399,2345.6,2344.4,12.94696418]
[1770078458918,11.71640414,2345.6,2344.4,12.94696418]
[1770078459118,11.71640414,2345.6,2344.6,1.06627996]
[1770078459293,11.71640414,2345.4,2344.6,1.06627996]
[1770078459494,11.71640414,2345.4,2344.5,1.06629776]
[1770078461194,11.71640414,2345.4,2344.4,4.2654547]
[1770078462815,12.78232966,2345.4,2344.3,0.01288604]
[1770078463009,11.71640414,2345.2,2344.3,1.06639276]
[1770078463412,11.71640414,2345.2,2344.1,1.0665074]
[1770078464123,12.78241863,2345.2,2344.1,1.0665074]
[1770078464320,11.71640414,2345.2,2344.1,1.0665074]
[1770078464528,1.29946371,2345.1,2344.1,1.0665074]
[1770078464701,11.71640414,2345.1,2344.1,1.0665074]
[1770078465031,11.71640414,2345.1,2344.0,6.06654304]
[1770078466027,12.7824608,2345.1,2344.0,6.06654304]
[1770078466223,11.71640414,2345.1,2344.1,11.88059326]
[1770078466426,1.27823297,2345.3,2344.3,0.01288604]
[1770078467130,1.27823297,2345.3,2344.3,11.8934793]
[1770078467422,5.40389779,2345.8,2344.3,11.8934793]
[1770078467423,11.71640414,2345.6,2344.6,0.01288604]
[1770078468294,11.71640414,2345.6,2344.7,1.06623448]
[1770078469031,2.039796,2345.5,2344.6,0.01288604]
[1770078469202,2.039796,2345.5,2344.6,1.06624594]
[1770078470115,12.69203274,2345.5,2344.6,1.06724594]
[1770078470299,14.06781871,2345.4,2344.6,1.60049178]
[1770078470499,14.06891871,2345.4,2344.6,1.60049178]
[1770078471323,1.37688597,2345.4,2344.6,1.60049178]
[1770078471512,0.0011,2345.4,2344.6,1.60049178]
[1770078473398,0.0011,2345.4,2344.6,1.61337782]
[1770078473601,12.69313274,2345.4,2344.6,1.60049178]
[1770078475129,12.69313274,2345.4,2344.6,1.61337782]
[1770078475536,0.0011,2345.4,2344.6,1.61337782]
[1770078475708,0.0011,2345.4,2344.7,0.98870551]
[1770078477222,0.0011,2345.4,2344.8,14.02021917]
[1770078477941,14.65163145,2346.1,2345.0,0.01288604]
[1770078479220,12.69203274,2345.9,2344.8,1.06615781]
[1770078479420,12.69203274,2345.7,2344.9,1.06614112]
[1770078479613,1.95959871,2346.1,2344.8,1.06616325]
[1770078479614,13.96123601,2345.6,2344.8,1.06616325]
[1770078479832,13.96123601,2345.6,2344.7,0.98870551]
[1770078480239,1.26920327,2345.6,2344.8,0.01288604]
[1770078480420,12.69203274,2346.0,2345.1,0.01288604]
[1770078480639,2.28596553,2346.6,2345.1,0.01288604]
[1770078480640,12.69203274,2346.6,2345.4,12.9669162]
[1770078480830,0.91344307,2346.5,2345.4,12.9669162]
[1770078481030,13.83291967,2346.8,2345.7,12.9669162]
[1770078481205,12.69203274,2346.8,2346.0,1.06560506]
[1770078481406,14.15715564,2346.8,2346.0,0.54571606]
[1770078481806,15.22244502,2346.8,2346.0,0.53283002]
[1770078482003,15.22244502,2346.8,2345.7,0.01288604]
[1770078482246,15.22244502,2346.8,2345.7,1.0786577]
[1770078482545,12.69203274,2346.6,2345.4,14.03279968]
[1770078482729,12.69203274,2346.6,2345.4,1.06589158]
[1770078483052,12.69203274,2346.4,2345.4,1.06589158]
[1770078483341,1.26920327,2346.3,2345.5,0.53297329]
[1770078483539,1.26920327,2346.3,2345.4,0.01288604]
[1770078484541,0.0011,2346.1,2345.4,0.01288604]
[1770078485236,0.0011,2346.1,2345.4,1.07876092]
[1770078485443,12.69313274,2346.1,2345.0,4.26436822]
[1770078485647,13.96134601,2346.0,2345.3,1.06592273]
[1770078485842,0.0011,2346.1,2345.4,1.0659112]
[1770078486015,0.0011,2346.1,2345.4,1.07879724]
[1770078486345,0.0011,2346.1,2345.4,14.0328274]
[1770078486543,0.0011,2346.1,2345.7,0.01288604]
[1770078486840,13.75730311,2346.9,2345.7,12.9669162]
[1770078487220,13.75730311,2346.9,2345.8,1.0657345]
[1770078487542,12.69203274,2346.9,2346.0,0.01288604]
[1770078487868,13.75727134,2346.9,2346.0,0.01288604]
[1770078488543,2.060147,2346.8,2346.0,0.01288604]
[1770078488742,1.58174183,2346.7,2345.7,14.0326639]
[1770078489428,2.64707721,2346.7,2345.7,14.0326639]
[1770078489616,1.58174183,2346.7,2345.7,14.0326639]
[1770078490453,14.27377457,2346.7,2345.7,14.0326639]
[1770078490615,1.58174183,2346.7,2345.7,14.0326639]
[1770078490819,2.077354,2346.8,2345.7,14.0326639]
[1770078491918,15.58212974,2346.7,2345.7,14.0326639]
[1770078492117,12.69203274,2346.7,2345.7,1.0657477]
[1770078492350,12.69203274,2346.7,2345.7,1.07863374]
[1770078492938,12.69203274,2346.7,2345.7,14.0326639]
[1770078493150,13.96123601,2346.7,2345.7,14.0326639]
[1770078495460,12.69203274,2346.7,2345.7,14.0326639]
[1770078496356,12.69203274,2346.7,2345.7,1.07863374]
[1770078497465,12.69203274,2347.0,2345.7,14.0326639]
[1770078497651,16.538819,2347.2,2346.0,0.01288604]
[1770078497853,0.0011,2346.7,2346.0,1.07851223]
[1770078498160,0.0011,2346.7,2346.0,1.07852268]
[1770078498560,0.0011,2346.7,2345.9,14.02070255]
[1770078498754,0.0011,2346.7,2346.0,1.07852865]
[1770078499136,12.69313274,2346.7,2345.9,1.06665828]
[1770078499467,13.96134601,2346.6,2345.9,0.001]
[1770078500571,0.0011,2346.7,2346.0,0.01288604]
[1770078501570,0.0011,2346.7,2346.0,5.01288604]
[1770078501858,0.0011,2346.7,2346.0,5.0]
[1770078502975,0.0011,2346.7,2346.0,6.06560873]
[1770078503273,12.66017915,2346.7,2346.0,6.06560873]
[1770078503891,0.0011,2346.7,2346.0,6.07849477]
[1770078508846,0.0011,2346.7,2346.0,18.23277385]
[1770078511472,0.0011,2346.7,2346.2,0.001]
[1770078515146,12.66017915,2346.7,2346.2,0.001]
[1770078516043,0.0011,2346.7,2346.2,0.001]
[1770078518999,0.0011,2346.7,2346.2,12.15527908]
[1770078519153,0.0011,2346.7,2346.3,12.16716512]
[1770078520275,0.0011,2346.7,2346.4,1.06546198]
[1770078520572,0.0011,2346.7,2346.4,13.21974106]
[1770078525890,12.65907915,2347.6,2346.7,12.15427908]
[1770078526071,12.65907915,2347.6,2346.6,0.01288604]
[1770078526072,12.65907915,2347.9,2346.9,12.16716512]
[1770078526250,12.65907915,2347.9,2347.2,0.01288604]
[1770078526450,12.65907915,2347.9,2347.3,1.06505346]
[1770078526983,12.65907915,2348.1,2347.3,1.06505346]
[1770078527170,12.65907915,2348.3,2347.6,0.01288604]
[1770078527382,5.39860814,2348.7,2347.6,7.64890309]
[1770078527383,12.65907915,2348.7,2347.6,7.64890309]
[1770078527684,12.65907915,2348.7,2347.6,19.80318217]
[1770078527885,12.65907915,2348.7,2347.4,19.79029613]
[1770078528060,13.10397617,2348.7,2347.5,0.01288604]
[1770078528382,12.65907915,2348.5,2347.5,12.16716512]
[1770078528565,12.65907915,2348.5,2347.6,1.06491736]
[1770078528957,12.65907915,2348.5,2347.5,13.23209933]
[1770078530659,12.65907915,2348.5,2347.6,19.36199577]
[1770078530859,2.18043695,2348.6,2347.8,11.73886476]
[1770078531183,2.18043695,2348.6,2347.8,12.63186476]
[1770078531682,13.87527082,2349.0,2347.9,11.72597872]
[1770078532095,12.8109859,2349.0,2347.9,11.72597872]
[1770078532461,12.8109859,2349.0,2348.0,1.06473594]
[1770078533065,12.8109859,2349.1,2348.1,11.72597872]
[1770078533265,12.8109859,2349.1,2348.1,11.73886476]
[1770078533561,1.23109859,2349.0,2348.1,11.73886476]
[1770078533762,12.8109859,2349.0,2348.1,11.73886476]
[1770078534802,12.8109859,2349.0,2348.2,1.06464526]
[1770078535301,13.87527195,2349.0,2348.0,1.06471057]
[1770078535462,13.87527195,2349.0,2348.1,1.06468776]
[1770078535463,12.8109859,2349.0,2348.1,1.06468776]
[1770078535666,4.25687322,2349.2,2348.1,1.06468776]
[1770078535667,12.8109859,2348.8,2348.1,1.06468776]
[1770078536876,12.8109859,2348.8,2348.0,4.25891672]
[1770078537690,14.1985131,2348.9,2348.0,4.25891672]
[1770078537892,1.3875272,2348.9,2348.0,4.25891672]
[1770078538101,12.8109859,2349.0,2348.1,11.72597872]
[1770078538808,12.8109859,2349.0,2348.0,4.25891672]
[1770078539501,13.87529338,2349.0,2347.9,1.06474663]
[1770078539683,13.87529338,2349.0,2347.9,1.06477316]
[1770078540385,12.8109859,2349.0,2348.1,0.01288604]
[1770078540574,12.8109859,2349.2,2348.4,0.01288604]
[1770078540980,0.1124155,2349.6,2348.8,0.01288604]
[1770078541168,0.1124155,2349.6,2349.1,0.01288604]
[1770078541367,0.1124155,2349.6,2348.8,11.73886476]
[1770078542401,0.1124155,2349.6,2348.9,0.01288604]
[1770078542606,0.1124155,2349.6,2348.9,11.73886476]
[1770078542780,0.1124155,2349.6,2349.2,0.01288604]
[1770078543184,0.1124155,2349.6,2349.0,1.06428267]
[1770078543696,0.1124155,2349.6,2348.9,12.80315814]
[1770078543902,0.1124155,2349.6,2348.8,4.25733637]
[1770078543903,0.1124155,2349.6,2348.8,1.06433731]
[1770078544073,0.1124155,2349.6,2348.9,0.62149611]
[1770078544274,0.1124155,2349.6,2348.9,1.68582093]
[1770078544575,0.1124155,2349.6,2348.9,1.68582288]
[1770078544898,0.1124155,2349.6,2348.9,0.62149611]
[1770078545075,13.9874167,2349.6,2348.4,1.06455459]
[1770078545269,13.9874167,2349.6,2348.1,4.25863542]
[1770078545482,13.9874167,2349.6,2348.3,1.06459234]
[1770078545805,12.8109859,2349.2,2348.1,1.07754197]
[1770078545980,12.8109859,2349.0,2348.2,1.06464379]
[1770078546187,12.8109859,2349.0,2348.3,1.06459711]
[1770078546500,1.28109859,2349.1,2348.3,1.06459711]
[1770078546903,12.8109859,2349.5,2348.4,0.01288604]
[1770078547078,12.8109859,2349.5,2348.5,1.06450926]
[1770078547272,12.8109859,2349.5,2348.4,1.07743853]
[1770078547273,12.8109859,2349.3,2348.4,1.07743853]
[1770078547700,12.8109859,2349.3,2348.4,0.01288604]
[1770078548002,1.28109859,2349.2,2348.3,1.06458214]
[1770078548207,1.28109859,2349.2,2348.4,1.07743889]
[1770078548904,12.8109859,2349.1,2348.0,5.15184967]
[1770078549079,12.8109859,2349.1,2348.2,1.06463122]
[1770078549400,12.8109859,2349.1,2348.1,1.07754878]
[1770078549604,14.22019435,2349.0,2348.1,1.07754878]
[1770078552185,14.22019435,2349.0,2348.3,0.001]
[1770078553593,12.8109859,2348.8,2347.5,11.73886476]
[1770078553788,12.8109859,2348.8,2347.6,1.06490848]
[1770078553982,12.8109859,2348.6,2347.5,15.99866146]
[1770078554236,1.28109859,2348.7,2348.1,0.01288604]
[1770078554520,1.40920845,2349.0,2348.1,12.80354682]
[1770078555077,1.40920845,2349.0,2348.4,0.01288604]
[1770078555278,1.40920845,2349.0,2348.0,5.15194265]
[1770078555279,12.8109859,2348.9,2348.0,0.893]
[1770078555479,12.8109859,2348.9,2348.0,0.90588604]
[1770078555695,12.8109859,2348.9,2347.6,4.27254305]
[1770078555696,12.8109859,2348.7,2347.6,11.72597872]
[1770078555896,1.28109859,2348.6,2347.9,0.01288604]
[1770078556182,14.09208449,2348.6,2347.5,11.73886476]
[1770078556383,14.09208449,2348.6,2347.6,1.06491644]
[1770078556704,14.09208449,2348.6,2347.7,1.06485791]
[1770078556888,14.09208449,2348.6,2347.6,0.01288604]
[1770078557084,1.40920845,2348.5,2347.6,0.01288604]
[1770078557288,14.22019435,2348.5,2347.3,1.06501289]
[1770078557606,14.22019435,2348.5,2347.1,1.06613675]
[1770078557607,12.8109859,2348.3,2347.1,1.06613675]
[1770078557820,12.8109859,2348.1,2347.1,0.001]
[1770078558002,1.06455459,2348.4,2347.3,11.73886476]
[1770078558003,12.8109859,2348.4,2347.3,11.73886476]
[1770078558180,1.52847394,2348.3,2347.6,0.01288604]
[1770078558385,1.40920845,2348.5,2347.9,0.01288604]
[1770078558715,14.76834983,2348.9,2347.9,0.01288604]